[Event "December 19 Early 2023"]
[Site "https://www.chess.com"]
[Date "2023.12.19"]
[Round "3"]
[White "Zemlyanskii, Ivan"]
[Black "Bardyk, Artem"]
[Result "0-1"]
[Board "13"]
[TimeControl "180+1"]
[WhiteFideId "24249971"]
[BlackFideId "34349979"]
[WhiteElo "2418"]
[BlackElo "2300"]
[WhiteTeam "RUS"]
[BlackTeam "RUS"]
[WhiteClock "0:00:00"]
[BlackClock "0:00:19"]

1. d4 {[%clk 0:03:00]}  d5 {[%clk 0:02:59]} 2. c4 {[%clk 0:03:00]}  e6 {[%clk 0:02:59]} 3. Nf3 {[%clk 0:03:00]}  Nf6 {[%clk 0:02:59]} 4. Qc2 {[%clk 0:03:00]}  Be7 {[%clk 0:02:52]} 5. cxd5 {[%clk 0:02:59]}  exd5 {[%clk 0:02:52]} 6. Bf4 {[%clk 0:03:00]}  c6 {[%clk 0:02:48]} 7. e3 {[%clk 0:03:00]}  O-O {[%clk 0:02:48]} 8. Nc3 {[%clk 0:02:59]}  Re8 {[%clk 0:02:48]} 9. Bd3 {[%clk 0:02:58]}  Nbd7 {[%clk 0:02:40]} 10. h3 {[%clk 0:02:58]}  Nf8 {[%clk 0:02:40]} 11. O-O {[%clk 0:02:58]}  Ne6 {[%clk 0:02:39]} 12. Bh2 {[%clk 0:02:58]}  Bd6 {[%clk 0:02:34]} 13. Bxd6 {[%clk 0:02:57]}  Qxd6 {[%clk 0:02:35]} 14. Rab1 {[%clk 0:02:58]}  a5 {[%clk 0:02:34]} 15. a3 {[%clk 0:02:58]}  Bd7 {[%clk 0:02:35]} 16. Rfc1 {[%clk 0:02:57]}  h6 {[%clk 0:02:34]} 17. b4 {[%clk 0:02:42]}  axb4 {[%clk 0:02:34]} 18. axb4 {[%clk 0:02:43]}  b5 {[%clk 0:02:35]} 19. Ne5 {[%clk 0:02:39]}  Rec8 {[%clk 0:02:16]} 20. Ne2 {[%clk 0:02:26]}  Be8 {[%clk 0:02:08]} 21. Bf5 {[%clk 0:02:05]}  Nd7 {[%clk 0:02:04]} 22. Nxd7 {[%clk 0:01:46]}  Bxd7 {[%clk 0:02:05]} 23. Rb3 {[%clk 0:01:37]}  Nd8 {[%clk 0:01:49]} 24. Nf4 {[%clk 0:01:29]}  Bxf5 {[%clk 0:01:18]} 25. Qxf5 {[%clk 0:01:29]}  Nb7 {[%clk 0:01:18]} 26. Rbc3 {[%clk 0:01:14]}  g6 {[%clk 0:00:59]} 27. Qe5 {[%clk 0:01:06]}  Qd7 {[%clk 0:00:54]} 28. Nd3 {[%clk 0:00:45]}  Nd6 {[%clk 0:00:51]} 29. Nc5 {[%clk 0:00:33]}  Qd8 {[%clk 0:00:52]} 30. e4 {[%clk 0:00:27]}  Nc4 {[%clk 0:00:29]} 31. Qf4 {[%clk 0:00:23]}  Qg5 {[%clk 0:00:30]} 32. Rf3 {[%clk 0:00:12]}  Qxf4 {[%clk 0:00:28]} 33. Rxf4 {[%clk 0:00:12]}  dxe4 {[%clk 0:00:22]} 34. Nxe4 {[%clk 0:00:09]}  Kg7 {[%clk 0:00:22]} 35. Nc5 {[%clk 0:00:06]}  Rd8 {[%clk 0:00:21]} 36. Re1 {[%clk 0:00:06]}  Ra7 {[%clk 0:00:20]} 37. h4 {[%clk 0:00:05]}  Nb6 {[%clk 0:00:19]} 38. Ree4 {[%clk 0:00:02]}  Nd5 {[%clk 0:00:19]} 39. Rf3 {[%clk 0:00:02]}  Nxb4 {[%clk 0:00:18]} 40. Rc3 {[%clk 0:00:01]}  Nd5 {[%clk 0:00:17]} 41. Rc1 {[%clk 0:00:02]}  b4 {[%clk 0:00:17]} 42. Nd3 {[%clk 0:00:02]}  Nc3 {[%clk 0:00:17]} 43. Rf4 {[%clk 0:00:02]}  Ne2+ {[%clk 0:00:17]} 44. Kh2 {[%clk 0:00:01]}  Nxf4 {[%clk 0:00:17]} 45. Nxf4 {[%clk 0:00:02]}  Rxd4 {[%clk 0:00:17]} 46. Ne2 {[%clk 0:00:02]}  Rxh4+ {[%clk 0:00:17]} 47. Kg3 {[%clk 0:00:02]}  Rh5 {[%clk 0:00:17]} 48. Rxc6 {[%clk 0:00:01]}  Rb7 {[%clk 0:00:18]} 49. Rc2 {[%clk 0:00:01]}  b3 {[%clk 0:00:18]} 50. Rb2 {[%clk 0:00:00]}  Rc5 {[%clk 0:00:19]} 0-1

[Event "December 19 Early 2023"]
[Site "https://www.chess.com"]
[Date "2023.12.19"]
[Round "3"]
[White "Hua, Lefong"]
[Black "Deac, Bogdan-Daniel"]
[Result "1/2-1/2"]
[Board "14"]
[TimeControl "180+1"]
[WhiteFideId "2602253"]
[BlackFideId "1226380"]
[WhiteElo "2696"]
[BlackElo "2641"]
[WhiteTeam "CAN"]
[BlackTeam "ROU"]
[WhiteClock "0:00:26"]
[BlackClock "0:00:09"]

1. d4 {[%clk 0:03:00]}  Nf6 {[%clk 0:02:59]} 2. c4 {[%clk 0:03:01]}  e6 {[%clk 0:02:59]} 3. Nc3 {[%clk 0:03:01]}  Bb4 {[%clk 0:02:58]} 4. f3 {[%clk 0:03:01]}  c5 {[%clk 0:02:54]} 5. a3 {[%clk 0:03:01]}  Ba5 {[%clk 0:02:53]} 6. d5 {[%clk 0:02:51]}  b5 {[%clk 0:02:48]} 7. e4 {[%clk 0:02:47]}  d6 {[%clk 0:02:48]} 8. Ne2 {[%clk 0:02:39]}  bxc4 {[%clk 0:02:41]} 9. Nf4 {[%clk 0:02:34]}  e5 {[%clk 0:02:39]} 10. Ne2 {[%clk 0:02:32]}  Nbd7 {[%clk 0:02:36]} 11. Ng3 {[%clk 0:02:27]}  Nb6 {[%clk 0:02:29]} 12. Be2 {[%clk 0:02:22]}  Bd7 {[%clk 0:02:29]} 13. O-O {[%clk 0:02:14]}  Bxc3 {[%clk 0:02:19]} 14. bxc3 {[%clk 0:02:13]}  Na4 {[%clk 0:02:20]} 15. Bd2 {[%clk 0:01:59]}  h5 {[%clk 0:01:51]} 16. f4 {[%clk 0:01:32]}  exf4 {[%clk 0:01:49]} 17. Rxf4 {[%clk 0:01:32]}  h4 {[%clk 0:01:22]} 18. Nf5 {[%clk 0:01:27]}  Bxf5 {[%clk 0:01:22]} 19. Rxf5 {[%clk 0:01:20]}  Nb6 {[%clk 0:01:22]} 20. Bg5 {[%clk 0:01:11]}  Qe7 {[%clk 0:01:20]} 21. Bxc4 {[%clk 0:00:52]}  Nxc4 {[%clk 0:00:56]} 22. Qa4+ {[%clk 0:00:45]}  Qd7 {[%clk 0:00:56]} 23. Qxc4 {[%clk 0:00:44]}  Ng4 {[%clk 0:00:56]} 24. Raf1 {[%clk 0:00:35]}  f6 {[%clk 0:00:52]} 25. Bc1 {[%clk 0:00:29]}  Ne5 {[%clk 0:00:40]} 26. Qa6 {[%clk 0:00:28]}  Rb8 {[%clk 0:00:34]} 27. Bf4 {[%clk 0:00:25]}  Rb6 {[%clk 0:00:33]} 28. Qe2 {[%clk 0:00:23]}  Qb5 {[%clk 0:00:32]} 29. Qxb5+ {[%clk 0:00:19]}  Rxb5 {[%clk 0:00:32]} 30. Bxe5 {[%clk 0:00:20]}  dxe5 {[%clk 0:00:32]} 31. c4 {[%clk 0:00:19]}  Ra5 {[%clk 0:00:27]} 32. Rb1 {[%clk 0:00:18]}  O-O {[%clk 0:00:18]} 33. Rf3 {[%clk 0:00:19]}  Ra4 {[%clk 0:00:15]} 34. Rc3 {[%clk 0:00:19]}  Rd8 {[%clk 0:00:15]} 35. Rb7 {[%clk 0:00:19]}  Rd6 {[%clk 0:00:15]} 36. Rc7 {[%clk 0:00:18]}  Ra5 {[%clk 0:00:11]} 37. Rb3 {[%clk 0:00:18]}  Kh7 {[%clk 0:00:06]} 38. Rbb7 {[%clk 0:00:18]}  Rxa3 {[%clk 0:00:05]} 39. Rxg7+ {[%clk 0:00:18]}  Kh8 {[%clk 0:00:03]} 40. Rg4 {[%clk 0:00:16]}  Rb6 {[%clk 0:00:03]} 41. Rxb6 {[%clk 0:00:15]}  axb6 {[%clk 0:00:03]} 42. Rg6 {[%clk 0:00:15]}  Rc3 {[%clk 0:00:02]} 43. Rxf6 {[%clk 0:00:14]}  Rxc4 {[%clk 0:00:03]} 44. Rxb6 {[%clk 0:00:14]}  Rxe4 {[%clk 0:00:03]} 45. Rc6 {[%clk 0:00:14]}  c4 {[%clk 0:00:04]} 46. d6 {[%clk 0:00:14]}  Rd4 {[%clk 0:00:04]} 47. d7 {[%clk 0:00:14]}  Rxd7 {[%clk 0:00:04]} 48. Rxc4 {[%clk 0:00:14]}  Rh7 {[%clk 0:00:04]} 49. Re4 {[%clk 0:00:15]}  Kg7 {[%clk 0:00:04]} 50. Rxe5 {[%clk 0:00:14]}  Kg6 {[%clk 0:00:04]} 51. Re4 {[%clk 0:00:14]}  Kg5 {[%clk 0:00:04]} 52. Kf2 {[%clk 0:00:14]}  Rf7+ {[%clk 0:00:04]} 53. Ke3 {[%clk 0:00:14]}  Ra7 {[%clk 0:00:05]} 54. h3 {[%clk 0:00:15]}  Ra3+ {[%clk 0:00:04]} 55. Kf2 {[%clk 0:00:15]}  Ra2+ {[%clk 0:00:05]} 56. Kf3 {[%clk 0:00:15]}  Ra3+ {[%clk 0:00:05]} 57. Re3 {[%clk 0:00:16]}  Ra5 {[%clk 0:00:06]} 58. Rc3 {[%clk 0:00:16]}  Rf5+ {[%clk 0:00:05]} 59. Ke2 {[%clk 0:00:16]}  Ra5 {[%clk 0:00:06]} 60. Rd3 {[%clk 0:00:16]}  Ra2+ {[%clk 0:00:06]} 61. Rd2 {[%clk 0:00:17]}  Ra5 {[%clk 0:00:06]} 62. Rd3 {[%clk 0:00:16]}  Ra2+ {[%clk 0:00:06]} 63. Kf3 {[%clk 0:00:17]}  Ra5 {[%clk 0:00:06]} 64. Re3 {[%clk 0:00:17]}  Rf5+ {[%clk 0:00:06]} 65. Ke2 {[%clk 0:00:18]}  Ra5 {[%clk 0:00:06]} 66. Kf2 {[%clk 0:00:18]}  Ra2+ {[%clk 0:00:06]} 67. Re2 {[%clk 0:00:19]}  Ra5 {[%clk 0:00:06]} 68. Rc2 {[%clk 0:00:20]}  Rf5+ {[%clk 0:00:06]} 69. Ke3 {[%clk 0:00:20]}  Re5+ {[%clk 0:00:07]} 70. Kf3 {[%clk 0:00:21]}  Rf5+ {[%clk 0:00:07]} 71. Ke4 {[%clk 0:00:21]}  Rf4+ {[%clk 0:00:07]} 72. Ke3 {[%clk 0:00:22]}  Ra4 {[%clk 0:00:07]} 73. Rc8 {[%clk 0:00:22]}  Ra3+ {[%clk 0:00:07]} 74. Kf2 {[%clk 0:00:22]}  Ra2+ {[%clk 0:00:07]} 75. Kg1 {[%clk 0:00:22]}  Ra4 {[%clk 0:00:06]} 76. Rc3 {[%clk 0:00:21]}  Rb4 {[%clk 0:00:06]} 77. Rc2 {[%clk 0:00:21]}  Rb5 {[%clk 0:00:06]} 78. Kh2 {[%clk 0:00:21]}  Rf5 {[%clk 0:00:06]} 79. g3 {[%clk 0:00:21]}  hxg3+ {[%clk 0:00:06]} 80. Kxg3 {[%clk 0:00:22]}  Kh5 {[%clk 0:00:07]} 81. Rc8 {[%clk 0:00:22]}  Rg5+ {[%clk 0:00:07]} 82. Kf4 {[%clk 0:00:22]}  Ra5 {[%clk 0:00:07]} 83. h4 {[%clk 0:00:22]}  Kg6 {[%clk 0:00:07]} 84. Rc4 {[%clk 0:00:21]}  Kh7 {[%clk 0:00:07]} 85. Kg4 {[%clk 0:00:21]}  Rb5 {[%clk 0:00:08]} 86. h5 {[%clk 0:00:22]}  Ra5 {[%clk 0:00:08]} 87. Rc7+ {[%clk 0:00:22]}  Kh6 {[%clk 0:00:08]} 88. Rc6+ {[%clk 0:00:22]}  Kh7 {[%clk 0:00:09]} 89. Kh4 {[%clk 0:00:23]}  Ra4+ {[%clk 0:00:09]} 90. Kg5 {[%clk 0:00:23]}  Ra5+ {[%clk 0:00:09]} 91. Kf6 {[%clk 0:00:24]}  Ra7 {[%clk 0:00:08]} 92. Re6 {[%clk 0:00:24]}  Rb7 {[%clk 0:00:08]} 93. Re7+ {[%clk 0:00:24]}  Rxe7 {[%clk 0:00:08]} 94. Kxe7 {[%clk 0:00:25]}  Kh6 {[%clk 0:00:08]} 95. Kf8 {[%clk 0:00:26]}  Kxh5 {[%clk 0:00:09]} 1/2-1/2

[Event "December 19 Early 2023"]
[Site "https://www.chess.com"]
[Date "2023.12.19"]
[Round "3"]
[White "Sarana, Alexey"]
[Black "Arabidze, Meri"]
[Result "1-0"]
[Board "15"]
[TimeControl "180+1"]
[WhiteFideId "24133795"]
[BlackFideId "13604040"]
[WhiteElo "2707"]
[BlackElo "2416"]
[WhiteTeam "SRB"]
[BlackTeam "GEO"]
[WhiteClock "0:01:17"]
[BlackClock "0:00:00"]

1. d4 {[%clk 0:03:00]}  Nf6 {[%clk 0:02:56]} 2. c4 {[%clk 0:03:01]}  e6 {[%clk 0:02:56]} 3. Nc3 {[%clk 0:03:02]}  Bb4 {[%clk 0:02:56]} 4. e3 {[%clk 0:03:02]}  O-O {[%clk 0:02:55]} 5. Bd3 {[%clk 0:03:02]}  Re8 {[%clk 0:02:55]} 6. Ne2 {[%clk 0:02:58]}  d5 {[%clk 0:02:55]} 7. O-O {[%clk 0:02:52]}  b6 {[%clk 0:02:55]} 8. cxd5 {[%clk 0:02:50]}  exd5 {[%clk 0:02:55]} 9. a3 {[%clk 0:02:50]}  Bd6 {[%clk 0:02:54]} 10. Qc2 {[%clk 0:02:36]}  a6 {[%clk 0:02:51]} 11. Ng3 {[%clk 0:02:29]}  Bb7 {[%clk 0:02:46]} 12. b4 {[%clk 0:02:26]}  g6 {[%clk 0:02:43]} 13. Bb2 {[%clk 0:02:26]}  Ng4 {[%clk 0:02:39]} 14. Be2 {[%clk 0:02:15]}  Nxh2 {[%clk 0:02:14]} 15. Kxh2 {[%clk 0:02:15]}  Qh4+ {[%clk 0:02:14]} 16. Kg1 {[%clk 0:02:15]}  Rxe3 {[%clk 0:02:14]} 17. Bf3 {[%clk 0:02:03]}  Rxf3 {[%clk 0:01:51]} 18. gxf3 {[%clk 0:02:01]}  Nd7 {[%clk 0:01:40]} 19. Kg2 {[%clk 0:02:00]}  Nf8 {[%clk 0:01:11]} 20. Nce2 {[%clk 0:01:56]}  Ne6 {[%clk 0:01:03]} 21. Rh1 {[%clk 0:01:56]}  Qf6 {[%clk 0:01:03]} 22. Rh6 {[%clk 0:01:54]}  Bf8 {[%clk 0:01:00]} 23. Rh2 {[%clk 0:01:51]}  h5 {[%clk 0:00:43]} 24. Rg1 {[%clk 0:01:40]}  Bg7 {[%clk 0:00:39]} 25. Qd2 {[%clk 0:01:35]}  h4 {[%clk 0:00:35]} 26. Nf1 {[%clk 0:01:35]}  Re8 {[%clk 0:00:23]} 27. Ne3 {[%clk 0:01:34]}  Ng5 {[%clk 0:00:18]} 28. f4 {[%clk 0:01:33]}  h3+ {[%clk 0:00:17]} 29. Rxh3 {[%clk 0:01:30]}  Nxh3 {[%clk 0:00:17]} 30. Kxh3 {[%clk 0:01:31]}  Bc8+ {[%clk 0:00:15]} 31. Kg2 {[%clk 0:01:31]}  Bf5 {[%clk 0:00:11]} 32. Nxf5 {[%clk 0:01:32]}  Qxf5 {[%clk 0:00:11]} 33. Ng3 {[%clk 0:01:33]}  Qg4 {[%clk 0:00:11]} 34. Re1 {[%clk 0:01:32]}  Rxe1 {[%clk 0:00:07]} 35. Qxe1 {[%clk 0:01:33]}  Qxf4 {[%clk 0:00:08]} 36. Qe8+ {[%clk 0:01:34]}  Kh7 {[%clk 0:00:05]} 37. Qc6 {[%clk 0:01:22]}  Bxd4 {[%clk 0:00:03]} 38. Bxd4 {[%clk 0:01:22]}  Qxd4 {[%clk 0:00:04]} 39. Qxc7 {[%clk 0:01:22]}  Kg7 {[%clk 0:00:04]} 40. Qd6 {[%clk 0:01:22]}  a5 {[%clk 0:00:03]} 41. b5 {[%clk 0:01:22]}  a4 {[%clk 0:00:03]} 42. Qc6 {[%clk 0:01:19]}  Qd3 {[%clk 0:00:01]} 43. Qxb6 {[%clk 0:01:19]}  d4 {[%clk 0:00:02]} 44. Qc5 {[%clk 0:01:17]}  Qd1 {[%clk 0:00:01]} 45. b6 {[%clk 0:01:17]}  d3 {[%clk 0:00:02]} 46. b7 {[%clk 0:01:17]}  Qb3 {[%clk 0:00:02]} 47. Qe5+ {[%clk 0:01:17]}  Kh7 {[%clk 0:00:00]} 48. b8=Q {[%clk 0:01:17]} 1-0

[Event "December 19 Early 2023"]
[Site "https://www.chess.com"]
[Date "2023.12.19"]
[Round "3"]
[White "Goltsev, Dmitry"]
[Black "Demchenko, Anton"]
[Result "0-1"]
[Board "20"]
[TimeControl "180+1"]
[WhiteFideId "24176710"]
[BlackFideId "4160258"]
[WhiteElo "2370"]
[BlackElo "2545"]
[WhiteTeam "RUS"]
[BlackTeam "SLO"]
[WhiteClock "0:00:00"]
[BlackClock "0:00:22"]

1. e4 {[%clk 0:03:00]}  c5 {[%clk 0:02:58]} 2. Nf3 {[%clk 0:03:01]}  d6 {[%clk 0:02:59]} 3. d4 {[%clk 0:03:01]}  cxd4 {[%clk 0:03:00]} 4. Nxd4 {[%clk 0:03:02]}  Nf6 {[%clk 0:03:00]} 5. Nc3 {[%clk 0:03:03]}  Nc6 {[%clk 0:03:01]} 6. Be2 {[%clk 0:03:03]}  e6 {[%clk 0:02:57]} 7. O-O {[%clk 0:03:03]}  Be7 {[%clk 0:02:57]} 8. Bg5 {[%clk 0:03:04]}  O-O {[%clk 0:02:56]} 9. Nxc6 {[%clk 0:03:00]}  bxc6 {[%clk 0:02:56]} 10. Qd2 {[%clk 0:03:00]}  d5 {[%clk 0:02:55]} 11. exd5 {[%clk 0:03:00]}  cxd5 {[%clk 0:02:54]} 12. Bd3 {[%clk 0:03:01]}  a5 {[%clk 0:02:50]} 13. Rfe1 {[%clk 0:03:00]}  Ba6 {[%clk 0:02:49]} 14. Rad1 {[%clk 0:02:59]}  Bxd3 {[%clk 0:02:41]} 15. Qxd3 {[%clk 0:03:00]}  a4 {[%clk 0:02:40]} 16. Re3 {[%clk 0:02:56]}  h6 {[%clk 0:02:08]} 17. Bh4 {[%clk 0:02:47]}  Re8 {[%clk 0:01:58]} 18. Nb5 {[%clk 0:02:31]}  Ne4 {[%clk 0:01:39]} 19. Bxe7 {[%clk 0:02:18]}  Qxe7 {[%clk 0:01:40]} 20. Nd4 {[%clk 0:02:17]}  Qb7 {[%clk 0:01:35]} 21. b3 {[%clk 0:01:43]}  Rec8 {[%clk 0:01:35]} 22. c4 {[%clk 0:01:41]}  Nf6 {[%clk 0:01:27]} 23. Nb5 {[%clk 0:01:15]}  Qc6 {[%clk 0:01:15]} 24. Qd4 {[%clk 0:01:10]}  dxc4 {[%clk 0:00:47]} 25. Na7 {[%clk 0:00:34]}  Rxa7 {[%clk 0:00:43]} 26. Qxa7 {[%clk 0:00:35]}  axb3 {[%clk 0:00:43]} 27. axb3 {[%clk 0:00:34]}  c3 {[%clk 0:00:44]} 28. Rc1 {[%clk 0:00:32]}  Nd5 {[%clk 0:00:43]} 29. Re4 {[%clk 0:00:29]}  Qb5 {[%clk 0:00:40]} 30. Qa2 {[%clk 0:00:25]}  Rb8 {[%clk 0:00:38]} 31. Qc2 {[%clk 0:00:16]}  Qxb3 {[%clk 0:00:35]} 32. Qxb3 {[%clk 0:00:17]}  Rxb3 {[%clk 0:00:36]} 33. Rc4 {[%clk 0:00:13]}  g5 {[%clk 0:00:36]} 34. Kf1 {[%clk 0:00:13]}  Rb2 {[%clk 0:00:36]} 35. g3 {[%clk 0:00:13]}  Rb3 {[%clk 0:00:34]} 36. Ke2 {[%clk 0:00:12]}  Kg7 {[%clk 0:00:34]} 37. h4 {[%clk 0:00:12]}  Kg6 {[%clk 0:00:32]} 38. hxg5 {[%clk 0:00:07]}  hxg5 {[%clk 0:00:33]} 39. Rc2 {[%clk 0:00:06]}  Ra3 {[%clk 0:00:32]} 40. Kf3 {[%clk 0:00:03]}  Kf5 {[%clk 0:00:32]} 41. Re4 {[%clk 0:00:02]}  Nf6 {[%clk 0:00:28]} 42. g4+ {[%clk 0:00:03]}  Kg6 {[%clk 0:00:28]} 43. Rc4 {[%clk 0:00:04]}  Nd5 {[%clk 0:00:29]} 44. Re4 {[%clk 0:00:04]}  Kf6 {[%clk 0:00:23]} 45. Rc4 {[%clk 0:00:04]}  Ke5 {[%clk 0:00:23]} 46. Rd2 {[%clk 0:00:00]}  cxd2+ {[%clk 0:00:22]} 0-1

[Event "December 19 Early 2023"]
[Site "https://www.chess.com"]
[Date "2023.12.19"]
[Round "3"]
[White "Bortnyk, Olexandr"]
[Black "Tologon tegin, Semetei"]
[Result "1-0"]
[Board "22"]
[TimeControl "180+1"]
[WhiteFideId "14120828"]
[BlackFideId "13800574"]
[WhiteElo "2731"]
[BlackElo "2258"]
[WhiteTeam "UKR"]
[BlackTeam "KGZ"]
[WhiteClock "0:00:16"]
[BlackClock "0:00:00"]

1. e4 {[%clk 0:03:00]}  c5 {[%clk 0:02:58]} 2. c3 {[%clk 0:03:00]}  d5 {[%clk 0:02:57]} 3. exd5 {[%clk 0:03:00]}  Qxd5 {[%clk 0:02:58]} 4. d4 {[%clk 0:03:00]}  Nf6 {[%clk 0:02:56]} 5. Be3 {[%clk 0:03:00]}  cxd4 {[%clk 0:02:50]} 6. cxd4 {[%clk 0:03:01]}  e6 {[%clk 0:02:50]} 7. Nc3 {[%clk 0:03:00]}  Bb4 {[%clk 0:02:50]} 8. Nf3 {[%clk 0:02:59]}  Bd7 {[%clk 0:02:47]} 9. Bd3 {[%clk 0:02:54]}  Bb5 {[%clk 0:02:44]} 10. O-O {[%clk 0:02:54]}  Bxc3 {[%clk 0:02:44]} 11. bxc3 {[%clk 0:02:54]}  O-O {[%clk 0:02:37]} 12. Rb1 {[%clk 0:02:48]}  Bxd3 {[%clk 0:02:36]} 13. Qxd3 {[%clk 0:02:49]}  b6 {[%clk 0:02:34]} 14. Bg5 {[%clk 0:02:37]}  Nbd7 {[%clk 0:02:20]} 15. c4 {[%clk 0:02:38]}  Qa5 {[%clk 0:02:15]} 16. Bf4 {[%clk 0:02:31]}  Rfc8 {[%clk 0:02:01]} 17. Bd6 {[%clk 0:02:30]}  Qxa2 {[%clk 0:01:57]} 18. Rfc1 {[%clk 0:02:17]}  Qa6 {[%clk 0:01:48]} 19. Ne5 {[%clk 0:02:10]}  Nxe5 {[%clk 0:01:44]} 20. dxe5 {[%clk 0:02:09]}  Nd7 {[%clk 0:01:39]} 21. h4 {[%clk 0:02:00]}  Rc6 {[%clk 0:01:27]} 22. h5 {[%clk 0:01:49]}  h6 {[%clk 0:01:27]} 23. Qe4 {[%clk 0:01:39]}  Rac8 {[%clk 0:01:26]} 24. Ra1 {[%clk 0:01:40]}  Qb7 {[%clk 0:01:17]} 25. Ra3 {[%clk 0:01:40]}  Nc5 {[%clk 0:00:23]} 26. Qf4 {[%clk 0:01:40]}  Qd7 {[%clk 0:00:20]} 27. Rg3 {[%clk 0:01:38]}  Kh8 {[%clk 0:00:19]} 28. Rcc3 {[%clk 0:01:32]}  Rg8 {[%clk 0:00:19]} 29. Rcf3 {[%clk 0:01:18]}  Nb7 {[%clk 0:00:19]} 30. Rxg7 {[%clk 0:00:53]}  Rxg7 {[%clk 0:00:18]} 31. Qxh6+ {[%clk 0:00:40]}  Kg8 {[%clk 0:00:18]} 32. Bf8 {[%clk 0:00:35]}  Kxf8 {[%clk 0:00:09]} 33. Rg3 {[%clk 0:00:35]}  Ke7 {[%clk 0:00:05]} 34. Qf6+ {[%clk 0:00:33]}  Ke8 {[%clk 0:00:05]} 35. Qxg7 {[%clk 0:00:20]}  Qd1+ {[%clk 0:00:06]} 36. Kh2 {[%clk 0:00:21]}  Qxh5+ {[%clk 0:00:06]} 37. Rh3 {[%clk 0:00:22]}  Qg6 {[%clk 0:00:06]} 38. Rh8+ {[%clk 0:00:15]}  Kd7 {[%clk 0:00:00]} 39. Qf8 {[%clk 0:00:16]} 1-0

[Event "December 19 Early 2023"]
[Site "https://www.chess.com"]
[Date "2023.12.19"]
[Round "3"]
[White "Movahed, Sina"]
[Black "Cristobal, Manuel"]
[Result "0-1"]
[Board "24"]
[TimeControl "180+1"]
[WhiteFideId "42520835"]
[BlackFideId "112879"]
[WhiteElo "2341"]
[BlackElo "2244"]
[WhiteTeam "IRI"]
[BlackTeam "ARG"]
[WhiteClock "0:00:11"]
[BlackClock "0:01:15"]

1. e4 {[%clk 0:03:00]}  Nc6 {[%clk 0:03:00]} 2. Nf3 {[%clk 0:02:59]}  d5 {[%clk 0:02:59]} 3. exd5 {[%clk 0:02:59]}  Qxd5 {[%clk 0:02:59]} 4. Nc3 {[%clk 0:03:00]}  Qh5 {[%clk 0:02:59]} 5. Nb5 {[%clk 0:02:41]}  Kd8 {[%clk 0:02:59]} 6. d4 {[%clk 0:02:35]}  Bg4 {[%clk 0:02:58]} 7. Bf4 {[%clk 0:02:34]}  a6 {[%clk 0:02:58]} 8. d5 {[%clk 0:02:17]}  Bxf3 {[%clk 0:02:58]} 9. gxf3 {[%clk 0:02:09]}  Ne5 {[%clk 0:02:58]} 10. Nd4 {[%clk 0:02:05]}  Nf6 {[%clk 0:02:58]} 11. Be2 {[%clk 0:02:05]}  Ng6 {[%clk 0:02:57]} 12. Bg3 {[%clk 0:02:04]}  Qxd5 {[%clk 0:02:57]} 13. c4 {[%clk 0:02:03]}  Qd7 {[%clk 0:02:56]} 14. Qc2 {[%clk 0:01:58]}  e5 {[%clk 0:02:47]} 15. Nf5 {[%clk 0:01:54]}  Bb4+ {[%clk 0:02:47]} 16. Kf1 {[%clk 0:01:54]}  Kc8 {[%clk 0:02:45]} 17. Rd1 {[%clk 0:01:51]}  Qe6 {[%clk 0:02:45]} 18. c5 {[%clk 0:01:33]}  Nf4 {[%clk 0:02:23]} 19. Bc4 {[%clk 0:01:27]}  Qe8 {[%clk 0:02:21]} 20. a3 {[%clk 0:00:53]}  Bxc5 {[%clk 0:02:14]} 21. Bxf4 {[%clk 0:00:46]}  exf4 {[%clk 0:02:12]} 22. b4 {[%clk 0:00:47]}  Bf8 {[%clk 0:01:53]} 23. Kg2 {[%clk 0:00:46]}  g6 {[%clk 0:01:52]} 24. Rhe1 {[%clk 0:00:45]}  Qc6 {[%clk 0:01:52]} 25. Nd4 {[%clk 0:00:44]}  Qb6 {[%clk 0:01:52]} 26. Bxf7 {[%clk 0:00:43]}  Bd6 {[%clk 0:01:53]} 27. Re6 {[%clk 0:00:39]}  Nd5 {[%clk 0:01:49]} 28. Re2 {[%clk 0:00:18]}  Ne7 {[%clk 0:01:47]} 29. a4 {[%clk 0:00:15]}  Nc6 {[%clk 0:01:47]} 30. Be6+ {[%clk 0:00:13]}  Kb8 {[%clk 0:01:47]} 31. Nxc6+ {[%clk 0:00:13]}  Qxc6 {[%clk 0:01:48]} 32. Qb3 {[%clk 0:00:13]}  b5 {[%clk 0:01:46]} 33. Bd5 {[%clk 0:00:13]}  Qd7 {[%clk 0:01:46]} 34. Bxa8 {[%clk 0:00:12]}  Kxa8 {[%clk 0:01:46]} 35. axb5 {[%clk 0:00:13]}  Qxb5 {[%clk 0:01:46]} 36. Ra2 {[%clk 0:00:13]}  Rb8 {[%clk 0:01:45]} 37. Qc2 {[%clk 0:00:12]}  Rb6 {[%clk 0:01:44]} 38. Qe4+ {[%clk 0:00:12]}  Ka7 {[%clk 0:01:44]} 39. Rd5 {[%clk 0:00:13]}  Qxb4 {[%clk 0:01:44]} 40. Qd3 {[%clk 0:00:13]}  Kb7 {[%clk 0:01:38]} 41. Rda5 {[%clk 0:00:13]}  Qb3 {[%clk 0:01:35]} 42. Qe4+ {[%clk 0:00:12]}  c6 {[%clk 0:01:35]} 43. Qe2 {[%clk 0:00:11]}  Rb5 {[%clk 0:01:35]} 44. Rxa6 {[%clk 0:00:12]}  Rg5+ {[%clk 0:01:35]} 45. Kh3 {[%clk 0:00:12]}  Rh5+ {[%clk 0:01:35]} 46. Kg4 {[%clk 0:00:12]}  Rg5+ {[%clk 0:01:14]} 47. Kxg5 {[%clk 0:00:10]}  Qd5+ {[%clk 0:01:14]} 48. Kh6 {[%clk 0:00:10]}  Bf8+ {[%clk 0:01:13]} 49. Kxh7 {[%clk 0:00:10]}  Qf7+ {[%clk 0:01:14]} 50. Kh8 {[%clk 0:00:11]}  Qg7# {[%clk 0:01:15]} 0-1

[Event "December 19 Early 2023"]
[Site "https://www.chess.com"]
[Date "2023.12.19"]
[Round "3"]
[White "Sahib Singh"]
[Black "Grandelius, Nils"]
[Result "1-0"]
[Board "26"]
[TimeControl "180+1"]
[WhiteFideId "25618342"]
[BlackFideId "1710400"]
[WhiteElo "2130"]
[BlackElo "2573"]
[WhiteTeam "IND"]
[BlackTeam "SWE"]
[WhiteClock "0:00:07"]
[BlackClock "0:00:12"]

1. e4 {[%clk 0:03:00]}  e6 {[%clk 0:02:58]} 2. d4 {[%clk 0:03:00]}  d5 {[%clk 0:02:59]} 3. Nd2 {[%clk 0:03:00]}  e5 {[%clk 0:02:59]} 4. exd5 {[%clk 0:02:30]}  exd4 {[%clk 0:02:53]} 5. Ngf3 {[%clk 0:02:30]}  Nf6 {[%clk 0:02:37]} 6. Bb5+ {[%clk 0:02:28]}  Bd7 {[%clk 0:02:26]} 7. Qe2+ {[%clk 0:02:22]}  Be7 {[%clk 0:02:26]} 8. Nxd4 {[%clk 0:02:21]}  O-O {[%clk 0:02:22]} 9. Bxd7 {[%clk 0:01:55]}  Qxd7 {[%clk 0:02:23]} 10. c4 {[%clk 0:01:55]}  c6 {[%clk 0:02:07]} 11. dxc6 {[%clk 0:01:53]}  Nxc6 {[%clk 0:01:43]} 12. Nxc6 {[%clk 0:01:53]}  Qxc6 {[%clk 0:01:43]} 13. O-O {[%clk 0:01:53]}  Rfe8 {[%clk 0:01:42]} 14. Qf3 {[%clk 0:01:53]}  Qa6 {[%clk 0:01:26]} 15. b3 {[%clk 0:01:48]}  Rad8 {[%clk 0:01:23]} 16. Qc3 {[%clk 0:01:33]}  Ng4 {[%clk 0:01:17]} 17. Qg3 {[%clk 0:01:13]}  Qg6 {[%clk 0:01:11]} 18. h3 {[%clk 0:01:09]}  Ne5 {[%clk 0:00:54]} 19. Qxg6 {[%clk 0:00:49]}  hxg6 {[%clk 0:00:55]} 20. Ne4 {[%clk 0:00:39]}  f5 {[%clk 0:00:47]} 21. Nc3 {[%clk 0:00:39]}  Bf6 {[%clk 0:00:34]} 22. Rb1 {[%clk 0:00:10]}  Nf3+ {[%clk 0:00:31]} 23. gxf3 {[%clk 0:00:10]}  Bxc3 {[%clk 0:00:32]} 24. Be3 {[%clk 0:00:09]}  Bd4 {[%clk 0:00:29]} 25. Bg5 {[%clk 0:00:08]}  Rc8 {[%clk 0:00:16]} 26. Rfe1 {[%clk 0:00:07]}  Kf7 {[%clk 0:00:15]} 27. Rxe8 {[%clk 0:00:06]}  Rxe8 {[%clk 0:00:15]} 28. Rd1 {[%clk 0:00:07]}  Bc5 {[%clk 0:00:12]} 29. Kf1 {[%clk 0:00:07]}  Ke6 {[%clk 0:00:09]} 30. Re1+ {[%clk 0:00:04]}  Kd7 {[%clk 0:00:10]} 31. Rxe8 {[%clk 0:00:05]}  Kxe8 {[%clk 0:00:10]} 32. Be3 {[%clk 0:00:06]}  b6 {[%clk 0:00:09]} 33. Bxc5 {[%clk 0:00:06]}  bxc5 {[%clk 0:00:10]} 34. f4 {[%clk 0:00:05]}  Ke7 {[%clk 0:00:10]} 35. Ke2 {[%clk 0:00:04]}  Kf6 {[%clk 0:00:11]} 36. h4 {[%clk 0:00:05]}  Ke6 {[%clk 0:00:11]} 37. Kd3 {[%clk 0:00:05]}  Kd6 {[%clk 0:00:12]} 38. Kc3 {[%clk 0:00:05]}  a5 {[%clk 0:00:11]} 39. a3 {[%clk 0:00:06]}  Kc6 {[%clk 0:00:12]} 40. b4 {[%clk 0:00:07]}  a4 {[%clk 0:00:12]} 41. bxc5 {[%clk 0:00:06]}  Kxc5 {[%clk 0:00:12]} 42. Kd3 {[%clk 0:00:07]} 1-0